bitfinex/quotes_BTCUSD_20250131
["timestamp","ask_amount","ask_price","bid_price","bid_amount"]
[1738355647505,1.30398154,102310.0,102290.0,0.09738661]
[1738355647712,0.33951276,102300.0,102290.0,0.00014345]
[1738355648054,0.146627,102300.0,102290.0,0.00014345]
[1738355648914,0.33951276,102300.0,102290.0,0.00014345]
[1738355649097,0.33951276,102300.0,102290.0,0.00414345]
[1738355649290,0.33951276,102300.0,102290.0,0.00014345]
[1738355649496,0.146627,102300.0,102290.0,0.00014345]
[1738355649717,0.146627,102300.0,102290.0,0.00114345]
[1738355650004,0.14736429,102300.0,102290.0,0.00114345]
[1738355651024,0.00073729,102300.0,102290.0,0.09838661]
[1738355651232,0.14736429,102300.0,102290.0,0.00114345]
[1738355653222,0.14736429,102300.0,102290.0,0.00139965]
[1738355655951,0.14580765,102300.0,102290.0,0.00139965]
[1738355660829,1.51891464,102310.0,102290.0,0.00139965]
[1738355661033,0.146627,102300.0,102290.0,0.00139965]
[1738355661607,1.51891364,102310.0,102290.0,0.00139965]
[1738355661816,0.97405364,102310.0,102290.0,0.49355565]
[1738355661964,0.96448178,102310.0,102290.0,0.59079881]
[1738355662166,0.96448178,102310.0,102300.0,0.146627]
[1738355662372,0.96448178,102310.0,102300.0,0.09724316]
[1738355662972,0.96448178,102310.0,102300.0,0.68767194]
[1738355663172,0.96448178,102310.0,102300.0,0.49477016]
[1738355663598,0.96448178,102310.0,102300.0,0.50477016]
[1738355663969,0.96448178,102320.0,102310.0,0.345469]
[1738355664313,0.96448178,102320.0,102310.0,0.71708816]
[1738355664641,0.96448178,102320.0,102310.0,0.90978614]
[1738355664993,0.96448178,102320.0,102310.0,0.71708816]
[1738355665785,0.96448178,102320.0,102310.0,0.90978614]
[1738355667069,0.96448178,102320.0,102310.0,0.71708816]
[1738355667440,0.96448178,102320.0,102310.0,0.71908816]
[1738355667626,0.96448178,102320.0,102310.0,0.70908816]
[1738355667819,0.96448178,102320.0,102310.0,0.91178614]
[1738355668226,0.96448178,102320.0,102310.0,0.93161754]
[1738355668487,0.96448178,102320.0,102310.0,0.73891956]
[1738355668658,0.96448178,102320.0,102310.0,0.7484563]
[1738355669592,0.96448178,102320.0,102310.0,0.94115428]
[1738355670143,0.96448178,102320.0,102310.0,0.7484563]
[1738355670526,0.96448178,102320.0,102310.0,0.7184563]
[1738355670726,0.96448178,102320.0,102310.0,0.7384563]
[1738355671175,0.96448178,102320.0,102310.0,0.5231489]
[1738355671790,0.96448178,102320.0,102310.0,0.3076799]
[1738355671993,0.96448178,102320.0,102310.0,0.4742929]
[1738355672204,0.96448178,102320.0,102310.0,0.4542929]
[1738355672413,0.96448178,102320.0,102310.0,0.3076799]
[1738355672628,0.96448178,102320.0,102310.0,0.09924316]
[1738355673050,0.96448178,102320.0,102310.0,0.24585616]
[1738355673463,1.11107978,102320.0,102310.0,0.002]
[1738355673681,0.96448178,102320.0,102310.0,0.002]
[1738355674533,1.11107978,102320.0,102310.0,0.002]
[1738355675154,0.96448178,102320.0,102310.0,0.002]
[1738355675389,0.96448178,102320.0,102310.0,0.32155616]
[1738355675591,0.96448178,102320.0,102310.0,0.24585616]
[1738355676091,0.96448178,102320.0,102310.0,0.09924316]
[1738355676298,0.96448178,102320.0,102310.0,0.24585616]
[1738355676476,0.96448178,102320.0,102310.0,0.09924316]
[1738355676913,1.11107978,102320.0,102310.0,0.002]
[1738355677120,1.40113452,102320.0,102310.0,0.002]
[1738355677335,1.33389976,102320.0,102310.0,0.002]
[1738355677556,1.14120178,102320.0,102310.0,0.002]
[1738355677771,1.14120178,102320.0,102300.0,0.0002562]
[1738355677976,1.33667278,102320.0,102300.0,0.1468812]
[1738355678205,1.33767278,102320.0,102300.0,0.0002562]
[1738355678402,0.146613,102310.0,102300.0,0.0002562]
[1738355678626,0.33931098,102310.0,102300.0,0.0002562]
[1738355678766,0.146613,102310.0,102300.0,0.0002562]
[1738355680417,0.14036544,102310.0,102300.0,0.0002562]
[1738355680648,0.33306342,102310.0,102300.0,0.0002562]
[1738355681228,0.43042018,102310.0,102300.0,0.0002562]
[1738355681417,0.33406342,102310.0,102300.0,0.0002562]
[1738355682426,0.33406342,102310.0,102290.0,0.00031405]
[1738355682427,0.147618,102310.0,102290.0,0.00031405]
[1738355682785,0.343112,102310.0,102300.0,0.002]
[1738355682980,0.146627,102300.0,102290.0,0.00031405]
[1738355683115,1.11110878,102300.0,102290.0,0.00031405]
[1738355683964,1.30380676,102300.0,102290.0,0.00031405]
[1738355684916,1.11110878,102300.0,102290.0,0.00031405]
[1738355685333,0.96448178,102300.0,102290.0,0.22265505]
[1738355686015,0.96448178,102300.0,102290.0,0.07601405]
[1738355686648,0.96448178,102300.0,102290.0,0.22265505]
[1738355687122,0.96448178,102300.0,102290.0,0.07801405]
[1738355687326,0.96448178,102300.0,102290.0,0.22465505]
[1738355687533,0.96448178,102300.0,102290.0,0.32189821]
[1738355687730,0.96460378,102320.0,102300.0,0.342121]
[1738355687932,0.96460378,102320.0,102300.0,0.43936416]
[1738355688226,1.30667278,102320.0,102300.0,0.24386516]
[1738355688436,1.30667278,102320.0,102300.0,0.43936716]
[1738355689019,1.11120678,102320.0,102300.0,0.43936716]
[1738355689234,1.11520678,102320.0,102300.0,0.43936716]
[1738355690233,0.96860378,102320.0,102300.0,0.43936716]
[1738355690474,1.11520278,102320.0,102290.0,0.48956305]
[1738355690682,1.73381366,102320.0,102300.0,0.0002562]
[1738355690791,0.146613,102310.0,102300.0,0.0002562]
[1738355690991,0.03,102310.0,102300.0,0.0002562]
[1738355691199,0.176613,102310.0,102300.0,0.0002562]
[1738355692065,0.36931098,102310.0,102300.0,0.0002562]
[1738355693246,0.36931098,102310.0,102300.0,0.0012562]
[1738355693441,0.37031098,102310.0,102300.0,0.0002562]
[1738355693870,0.37131098,102310.0,102300.0,0.0002562]
[1738355698613,0.146627,102300.0,102290.0,0.00022548]
[1738355698750,1.23971743,102300.0,102290.0,0.00022548]
[1738355699873,1.09309043,102300.0,102290.0,0.00022548]
[1738355700079,1.23971743,102300.0,102290.0,0.00022548]
[1738355700521,0.96448178,102300.0,102290.0,0.14686648]
[1738355700732,0.96448178,102300.0,102290.0,0.22246648]
[1738355701137,0.96448178,102300.0,102290.0,0.14686648]
[1738355701333,0.96448178,102300.0,102290.0,0.00022548]
[1738355701635,1.09309043,102300.0,102290.0,0.00022548]
[1738355701869,1.23971743,102300.0,102290.0,0.00022548]
[1738355702093,1.46568284,102300.0,102290.0,0.00022548]
[1738355702509,1.46568284,102300.0,102290.0,0.00222548]
[1738355702683,1.46580484,102300.0,102290.0,0.00222548]
[1738355702861,1.33719619,102300.0,102290.0,0.00222548]
[1738355703479,1.23983943,102300.0,102290.0,0.00222548]
[1738355704682,1.3041501,102300.0,102290.0,0.00222548]
[1738355705157,1.40139326,102300.0,102290.0,0.00222548]
[1738355706343,1.40139326,102300.0,102290.0,0.00022548]
[1738355706696,1.41039326,102300.0,102290.0,0.00122548]
[1738355706927,1.50775002,102300.0,102290.0,0.00122548]
[1738355707504,1.66275002,102300.0,102290.0,0.00122548]
[1738355707934,1.68575002,102300.0,102290.0,0.00122548]
[1738355709332,1.80865002,102300.0,102290.0,0.00122548]
[1738355709571,1.6157307,102300.0,102290.0,0.00122548]
[1738355710335,1.6229707,102300.0,102290.0,0.00122548]
[1738355710536,1.6179707,102300.0,102290.0,0.00122548]
[1738355710936,1.6269707,102300.0,102290.0,0.00222548]
[1738355711781,1.6107307,102300.0,102290.0,0.00122548]
[1738355711920,1.6179707,102300.0,102290.0,0.00122548]
[1738355712132,1.23371394,102300.0,102290.0,0.00222548]
[1738355713373,1.24322333,102300.0,102290.0,0.00222548]
[1738355715695,1.26622333,102300.0,102290.0,0.00222548]
[1738355716108,1.22647394,102300.0,102290.0,0.00222548]
[1738355716517,1.12923078,102300.0,102290.0,0.08132548]
[1738355717252,1.12923078,102300.0,102290.0,0.22796648]
[1738355717253,0.98260378,102300.0,102290.0,0.22796648]
[1738355717495,0.97360378,102300.0,102290.0,0.13002548]
[1738355717903,0.96460378,102300.0,102290.0,0.12902548]
[1738355718110,0.95825078,102300.0,102290.0,0.27566648]
[1738355718291,0.000122,102300.0,102290.0,0.27566648]
[1738355718532,0.146749,102300.0,102290.0,0.12902548]
[1738355718734,0.146749,102300.0,102290.0,0.04992548]
[1738355719757,0.24410576,102300.0,102290.0,0.00022548]
[1738355719895,0.146749,102300.0,102290.0,0.00022548]
[1738355720735,0.151749,102300.0,102290.0,0.00022548]
[1738355723102,0.160749,102300.0,102290.0,0.00122548]
[1738355724007,0.014122,102300.0,102290.0,0.14786648]
[1738355724219,0.014122,102300.0,102290.0,0.04632548]
[1738355725226,0.014122,102300.0,102290.0,0.19296648]
[1738355725431,0.014122,102300.0,102290.0,0.04632548]
[1738355726041,0.160749,102300.0,102290.0,0.04632548]
[1738355726640,0.160749,102300.0,102290.0,0.00122548]
[1738355726840,0.25799216,102300.0,102290.0,0.00122548]
[1738355726996,0.28099216,102300.0,102290.0,0.00122548]
[1738355728259,0.25799216,102300.0,102290.0,0.00122548]
[1738355730623,0.43099216,102300.0,102290.0,0.00122548]
[1738355730854,0.52834892,102300.0,102290.0,0.00122548]
[1738355731068,0.60504892,102300.0,102290.0,0.00122548]
[1738355732864,0.63504892,102300.0,102290.0,0.00122548]
[1738355734660,0.73504892,102300.0,102290.0,4.8e-07]
[1738355735322,0.63504892,102300.0,102290.0,4.8e-07]
[1738355735526,0.296641,102290.0,102280.0,0.00025536]
[1738355735735,0.61134092,102290.0,102280.0,3.6e-07]
[1738355735944,0.64113317,102290.0,102280.0,3.6e-07]
[1738355736146,0.66413317,102290.0,102280.0,3.6e-07]
[1738355736550,0.63434092,102290.0,102280.0,3.6e-07]
[1738355736760,0.66413317,102290.0,102280.0,3.6e-07]
[1738355737173,0.67313317,102290.0,102280.0,0.00100036]
[1738355737985,0.67313317,102290.0,102280.0,3.6e-07]
[1738355738304,0.68213317,102290.0,102280.0,3.6e-07]
[1738355738712,0.67313317,102290.0,102280.0,3.6e-07]
[1738355738939,0.68213317,102290.0,102280.0,3.6e-07]
[1738355739514,0.65234092,102290.0,102280.0,3.6e-07]
[1738355739988,0.65958092,102290.0,102280.0,3.6e-07]
[1738355740494,1.04575726,102290.0,102280.0,3.6e-07]
[1738355740631,0.85266909,102290.0,102280.0,3.6e-07]
[1738355741034,0.70232909,102290.0,102280.0,3.6e-07]
[1738355741459,0.70956909,102290.0,102280.0,3.6e-07]
[1738355742210,0.14667,102270.0,102260.0,0.12611572]
[1738355742595,1.30423995,102270.0,102260.0,0.00021572]
[1738355742794,1.40148311,102270.0,102260.0,0.00021572]
[1738355743552,1.41448311,102270.0,102260.0,0.00021572]
[1738355743962,1.43748311,102270.0,102260.0,0.00021572]
[1738355744139,1.58748311,102270.0,102260.0,0.00021572]
[1738355744497,1.71463212,102270.0,102260.0,0.00021572]
[1738355745070,1.68483987,102270.0,102260.0,0.00021572]
[1738355745233,1.68083987,102270.0,102260.0,0.00021572]
[1738355745634,1.68983987,102270.0,102260.0,0.00121572]
[1738355745838,1.68807987,102270.0,102260.0,0.00121572]
[1738355746092,1.69707987,102270.0,102260.0,0.00121572]
[1738355746810,1.71678031,102270.0,102260.0,0.00121572]
[1738355748846,1.72643758,102270.0,102260.0,0.00121572]
[1738355749269,1.60214038,102270.0,102260.0,0.00121572]
[1738355749490,1.57914038,102270.0,102260.0,0.00121572]
[1738355750126,1.41948311,102270.0,102220.0,0.01]
[1738355750334,1.41948311,102270.0,102190.0,0.00025578]
[1738355750335,0.173,102200.0,102190.0,0.00025578]
[1738355750543,1.79421228,102200.0,102190.0,0.00073505]
[1738355750778,1.79856412,102200.0,102190.0,0.00073505]
[1738355750994,1.78191228,102200.0,102190.0,0.00073505]
[1738355751208,1.79491228,102200.0,102190.0,0.00073505]
[1738355751632,1.83156412,102200.0,102190.0,0.00073505]
[1738355751841,1.89226904,102200.0,102190.0,0.00073505]
[1738355752053,1.92892088,102200.0,102190.0,0.00073505]
[1738355752263,1.89226904,102200.0,102190.0,0.00073505]
[1738355752704,1.59823595,102200.0,102190.0,0.00073505]
[1738355752925,1.31334095,102200.0,102190.0,0.00073505]
[1738355753131,0.97348178,102200.0,102190.0,0.07913505]
[1738355753336,0.97348178,102200.0,102190.0,0.12653505]
[1738355753545,1.12025278,102200.0,102190.0,1.62653505]
[1738355753775,1.31334095,102200.0,102190.0,1.62653505]
[1738355753977,1.31334095,102200.0,102190.0,0.12653505]
[1738355754188,1.30434095,102200.0,102190.0,0.12653505]
[1738355754846,1.49894087,102200.0,102160.0,0.00025578]
[1738355755058,0.17,102160.0,102130.0,0.00025578]
[1738355755288,0.33994517,102140.0,102130.0,0.00039947]
[1738355755493,1.30442695,102140.0,102130.0,0.04649947]
[1738355755917,1.11133878,102140.0,102130.0,0.04649947]
[1738355756128,1.11133878,102140.0,102130.0,0.14374263]
[1738355756350,0.96448178,102140.0,102130.0,0.29061363]
[1738355757881,0.96448178,102140.0,102130.0,0.36871363]
[1738355758105,1.11133878,102140.0,102130.0,0.36871363]
[1738355758307,1.11133878,102140.0,102130.0,0.22184263]
[1738355758699,1.11133878,102140.0,102130.0,0.36871363]
[1738355758937,0.96448178,102140.0,102130.0,0.36871363]
[1738355760371,0.96448178,102140.0,102130.0,0.51871363]
[1738355760580,0.96448178,102160.0,102150.0,0.146842]
[1738355760789,0.96448178,102160.0,102150.0,0.29388516]
[1738355760998,0.96448178,102160.0,102150.0,0.37388516]
[1738355761991,1.30439795,102160.0,102150.0,0.1298]
[1738355762181,1.59484288,102160.0,102150.0,0.0498]
[1738355762531,1.40175471,102160.0,102150.0,0.0498]
[1738355762731,1.30439795,102160.0,102150.0,0.0498]
[1738355763141,0.96448178,102160.0,102150.0,0.29388516]
[1738355764582,0.96448178,102160.0,102150.0,0.37598516]
[1738355764792,0.96448178,102180.0,102170.0,0.14681]
[1738355765001,1.11128078,102180.0,102170.0,0.09724316]
[1738355765250,0.96448178,102180.0,102170.0,0.24405716]
[1738355766037,0.96448178,102180.0,102170.0,0.24420085]
[1738355766254,1.12448178,102180.0,102170.0,0.00014369]
[1738355766458,1.6661282,102180.0,102170.0,0.00014369]
[1738355766668,1.76348496,102180.0,102170.0,0.00014369]
[1738355766875,1.4958807,102180.0,102170.0,0.00014369]
[1738355767088,1.23852394,102180.0,102170.0,0.00014369]
[1738355767497,1.59161211,102180.0,102170.0,0.00014369]
[1738355767702,1.60461211,102180.0,102170.0,0.00014369]
[1738355767929,1.62461211,102180.0,102170.0,0.00014369]
[1738355768160,1.72296887,102180.0,102170.0,0.00114369]
[1738355768356,1.72296887,102180.0,102170.0,0.00014369]
[1738355768561,1.72196887,102180.0,102170.0,0.00014369]
[1738355768927,1.5288807,102180.0,102170.0,0.00014369]
[1738355769107,1.40152394,102180.0,102170.0,0.00014369]
[1738355769314,1.25152394,102180.0,102170.0,0.00014369]
[1738355769717,1.15428078,102180.0,102170.0,0.00014369]
[1738355770237,0.316857,102140.0,102130.0,0.00025578]
[1738355770559,1.41774764,102140.0,102130.0,0.00039953]
[1738355770908,1.42074764,102140.0,102130.0,5.3e-07]
[1738355771560,1.44074764,102140.0,102130.0,5.3e-07]
[1738355771772,1.42974764,102140.0,102130.0,5.3e-07]
[1738355772160,1.43874764,102140.0,102130.0,0.00100053]
[1738355773036,0.146914,102100.0,102090.0,0.04271251]
[1738355773172,0.146914,102100.0,102090.0,0.14043542]
[1738355773784,0.96448178,102110.0,102100.0,0.146914]
[1738355773995,0.146914,102100.0,102090.0,0.00047975]
[1738355774383,0.342786,102110.0,102100.0,0.146914]
[1738355774632,1.50314278,102110.0,102090.0,0.44053891]
[1738355774855,1.35623678,102110.0,102090.0,0.44053891]
[1738355775062,1.50314878,102110.0,102090.0,0.63643491]
[1738355775269,1.11139378,102110.0,102100.0,0.146914]
[1738355775486,0.96448178,102110.0,102100.0,0.24415716]
[1738355775690,0.96448178,102110.0,102100.0,0.47335716]
[1738355776111,0.96448178,102110.0,102100.0,0.52105716]
[1738355777142,0.96448178,102110.0,102100.0,0.0477]
[1738355777143,1.20862494,102110.0,102100.0,0.0477]
[1738355777552,1.20862494,102110.0,102100.0,0.0487]
[1738355777995,1.20862494,102110.0,102100.0,0.0477]
[1738355778211,1.11138178,102110.0,102100.0,0.0477]
[1738355778406,1.11138178,102110.0,102100.0,0.0487]
[1738355778754,1.11134178,102110.0,102100.0,0.0487]
[1738355779185,1.35858494,102110.0,102100.0,0.001]
[1738355779400,1.40158494,102110.0,102100.0,0.001]
[1738355780261,1.43462644,102110.0,102100.0,0.001]
[1738355780487,1.4989417,102110.0,102100.0,0.001]
[1738355780688,1.5319832,102110.0,102100.0,0.001]
[1738355780909,1.37510494,102110.0,102100.0,0.001]
[1738355781242,0.146914,102100.0,102090.0,0.00047975]
[1738355782037,1.26656494,102110.0,102090.0,0.00047975]
[1738355782231,1.26656494,102110.0,102100.0,0.146914]
[1738355782232,0.97744178,102110.0,102100.0,0.146914]
[1738355782440,0.013,102110.0,102100.0,0.146914]
[1738355782646,0.159901,102110.0,102090.0,0.57043791]
[1738355782870,0.013,102110.0,102100.0,0.00671581]
[1738355783311,0.013,102110.0,102100.0,0.25087297]
[1738355783508,0.004,102110.0,102100.0,0.25087297]
[1738355783737,0.004,102110.0,102100.0,0.40087297]
[1738355783942,0.004,102110.0,102100.0,0.69932727]
[1738355784153,0.96448178,102120.0,102100.0,0.59675797]
[1738355784360,0.1469,102110.0,102100.0,0.00671581]
[1738355784562,0.1469,102110.0,102100.0,0.00971581]
[1738355785196,0.1469,102110.0,102100.0,0.01171581]
[1738355785421,1.50308578,102120.0,102100.0,0.01171581]
[1738355785597,0.96448178,102120.0,102100.0,0.35451181]
[1738355785742,1.11136878,102120.0,102100.0,0.35451181]
[1738355785936,0.96448178,102120.0,102100.0,0.55038881]
[1738355786148,0.96448178,102120.0,102110.0,0.1469]
[1738355786555,0.96448178,102120.0,102110.0,0.20206982]
[1738355787157,0.96448178,102120.0,102110.0,0.29931298]
[1738355787872,0.96448178,102120.0,102110.0,0.30031298]
[1738355788314,0.96448178,102120.0,102110.0,0.29931298]
[1738355788513,0.96448178,102120.0,102110.0,0.30131298]
[1738355788714,0.96448178,102140.0,102120.0,0.615959]
[1738355788928,0.96448178,102140.0,102130.0,0.146871]
[1738355789123,1.11133978,102140.0,102120.0,0.51735716]
[1738355789533,0.156886,102120.0,102110.0,0.01186982]
[1738355789694,1.13706646,102120.0,102090.0,0.0001222]
[1738355789896,0.342787,102110.0,102090.0,0.0001222]
[1738355790195,0.146911,102110.0,102100.0,0.00459991]
[1738355790407,1.40447994,102120.0,102100.0,0.00459991]
[1738355790720,0.1469,102110.0,102100.0,0.00459991]
[1738355791282,0.24425676,102110.0,102100.0,0.00459991]
[1738355791489,0.34149992,102110.0,102100.0,0.00659991]
[1738355791691,0.34149992,102110.0,102100.0,0.00459991]
[1738355791893,0.83277339,102110.0,102100.0,0.00459991]
[1738355792094,0.86698226,102110.0,102100.0,0.00459991]
[1738355792530,0.01,102100.0,102090.0,0.00060195]
[1738355792775,1.44164717,102100.0,102090.0,0.00060195]
[1738355793489,1.44164717,102100.0,102090.0,0.0052459]
[1738355794072,1.44164717,102100.0,102090.0,0.0062459]
[1738355796131,1.75292064,102100.0,102090.0,0.0062459]
[1738355797173,1.77292064,102100.0,102090.0,0.0062459]
[1738355797389,1.88502951,102100.0,102090.0,0.0052459]
[1738355797628,1.86702951,102100.0,102090.0,0.0052459]
[1738355797831,1.86702951,102100.0,102090.0,0.00060195]
[1738355798060,1.84182064,102100.0,102090.0,0.00160195]
[1738355798268,1.83282064,102100.0,102090.0,0.00060195]
[1738355798493,1.83282064,102100.0,102090.0,0.00160195]
[1738355798692,1.84182064,102100.0,102090.0,0.00160195]
[1738355799125,1.83982064,102100.0,102090.0,0.00160195]
[1738355799333,1.84482064,102100.0,102090.0,0.00160195]
[1738355799942,1.83982064,102100.0,102090.0,0.00160195]
[1738355800150,1.86782064,102100.0,102090.0,0.00160195]
[1738355800362,1.79744064,102100.0,102090.0,0.00160195]
[1738355800570,1.79744064,102100.0,102090.0,0.00629601]
[1738355801601,1.82744064,102100.0,102090.0,0.00629601]
[1738355802221,1.82744064,102100.0,102090.0,0.00160195]
[1738355802843,1.82744064,102100.0,102090.0,0.00629601]
[1738355803058,1.81744064,102100.0,102090.0,0.00629601]
[1738355803263,1.48864717,102100.0,102090.0,0.00629601]
[1738355803466,1.34616717,102100.0,102090.0,0.00629601]
[1738355803672,1.25563894,102100.0,102090.0,0.00160195]
[1738355803879,1.41315894,102100.0,102090.0,0.00629533]
[1738355804291,1.40563894,102100.0,102090.0,0.00629533]
[1738355804519,1.30839578,102100.0,102090.0,0.00629533]
[1738355805040,1.15839578,102100.0,102090.0,0.00629533]
[1738355805883,1.15839578,102100.0,102090.0,0.00529533]
[1738355805884,1.00248178,102100.0,102090.0,0.00529533]
[1738355806336,1.00248178,102100.0,102090.0,0.15222433]
[1738355806540,1.01148178,102100.0,102090.0,0.29736749]
[1738355806747,0.038,102100.0,102090.0,0.29636749]
[1738355806948,1.00248178,102100.0,102090.0,0.29736749]
[1738355807159,1.01148178,102100.0,102090.0,0.29736749]
[1738355807305,1.00348178,102100.0,102090.0,0.29736749]
[1738355807507,1.00848178,102100.0,102090.0,0.29736749]
[1738355807696,1.00848178,102100.0,102090.0,0.29636749]
[1738355807904,0.99948178,102100.0,102090.0,0.29636749]
[1738355808124,0.99548178,102100.0,102090.0,0.29636749]
[1738355808329,1.14239578,102100.0,102090.0,0.05319533]
[1738355812353,0.99548178,102100.0,102090.0,0.05319533]
[1738355812553,0.99548178,102100.0,102090.0,0.20012433]
[1738355814039,0.99548178,102100.0,102090.0,0.29736749]
[1738355814912,0.031,102100.0,102090.0,0.29736749]
[1738355815333,0.031,102100.0,102090.0,0.7234908]
[1738355815535,0.001,102100.0,102090.0,0.7234908]
[1738355816189,0.001,102100.0,102090.0,0.7224908]
[1738355816515,0.96473798,102110.0,102100.0,0.146914]
[1738355816715,0.96473798,102110.0,102100.0,0.24880181]
[1738355817292,1.56250445,102110.0,102100.0,0.00464465]
[1738355817428,0.146914,102100.0,102090.0,0.05050195]
[1738355817954,0.146914,102100.0,102090.0,0.04750195]
[1738355819158,0.176914,102100.0,102090.0,0.04750195]
[1738355820565,0.176914,102100.0,102090.0,0.00360195]
[1738355820566,0.43053075,102100.0,102090.0,0.00360195]
[1738355820767,0.67777391,102100.0,102090.0,0.00560195]
[1738355821172,0.74198278,102100.0,102090.0,0.00560195]
[1738355821376,0.76498278,102100.0,102090.0,0.00560195]
[1738355821598,0.75498278,102100.0,102090.0,0.00560195]
[1738355822009,0.73498278,102100.0,102090.0,0.00360195]
[1738355822573,0.73498278,102100.0,102090.0,0.00460195]
[1738355822988,0.199929,102090.0,102080.0,0.00025599]
[1738355823234,1.75046619,102090.0,102080.0,0.00039985]
[1738355823431,1.83146619,102090.0,102080.0,0.00039985]
[1738355823557,1.98146619,102090.0,102080.0,0.00039985]
[1738355823766,1.78784288,102090.0,102080.0,0.00039985]
[1738355824349,2.08146619,102090.0,102080.0,8.5e-07]
[1738355824565,0.296943,102080.0,102070.0,8.4e-07]
[1738355824770,0.87878954,102080.0,102070.0,8.4e-07]
[1738355824973,0.91299841,102080.0,102070.0,8.4e-07]
[1738355825397,0.87878954,102080.0,102070.0,8.4e-07]
[1738355825831,0.69256623,102080.0,102070.0,8.4e-07]
[1738355826238,0.71556623,102080.0,102070.0,8.4e-07]
[1738355826447,0.73556623,102080.0,102070.0,8.4e-07]
[1738355826564,0.71556623,102080.0,102070.0,8.4e-07]
[1738355826978,0.62080947,102080.0,102070.0,8.4e-07]
[1738355827181,0.63720947,102080.0,102070.0,8.4e-07]
[1738355827391,0.62980947,102080.0,102070.0,8.4e-07]
[1738355827632,0.66620947,102080.0,102070.0,8.4e-07]
[1738355827875,0.64620947,102080.0,102070.0,8.4e-07]
[1738355828026,0.76356623,102080.0,102070.0,8.4e-07]
[1738355828240,0.92718954,102080.0,102070.0,8.4e-07]
[1738355828456,0.96066617,102080.0,102070.0,8.4e-07]
[1738355828660,0.99085604,102080.0,102070.0,8.4e-07]
[1738355829057,0.57341955,102080.0,102070.0,8.4e-07]
[1738355831010,0.6231587,102080.0,102070.0,8.4e-07]
[1738355831213,0.5520922,102080.0,102070.0,8.4e-07]
[1738355831425,0.5594922,102080.0,102070.0,8.4e-07]
[1738355831871,0.6684587,102080.0,102070.0,8.4e-07]
[1738355832300,0.61296883,102080.0,102070.0,8.4e-07]
[1738355832494,0.5794922,102080.0,102070.0,8.4e-07]
[1738355832745,0.5594922,102080.0,102070.0,8.4e-07]
[1738355833085,0.5794922,102080.0,102070.0,8.4e-07]
[1738355833389,0.5594922,102080.0,102070.0,8.4e-07]
[1738355833701,0.5794922,102080.0,102070.0,8.4e-07]
[1738355833913,0.5594922,102080.0,102070.0,8.4e-07]
[1738355835371,0.5894922,102080.0,102070.0,8.4e-07]
[1738355836814,0.5820922,102080.0,102070.0,8.4e-07]
[1738355836989,0.56994292,102080.0,102070.0,8.4e-07]
[1738355837427,0.51690292,102080.0,102070.0,8.4e-07]
[1738355838171,0.44254616,102080.0,102070.0,8.4e-07]
[1738355838371,0.49602279,102080.0,102070.0,8.4e-07]
[1738355838574,0.47602279,102080.0,102070.0,8.4e-07]
[1738355840893,0.51525379,102080.0,102070.0,8.4e-07]
[1738355841823,0.95034366,102080.0,102070.0,8.4e-07]
[1738355842061,1.25080042,102080.0,102070.0,8.4e-07]
[1738355842251,0.92220042,102080.0,102070.0,8.4e-07]
[1738355842858,0.94230137,102080.0,102070.0,8.4e-07]
[1738355843873,0.7000115,102080.0,102070.0,8.4e-07]
[1738355844321,0.7090115,102080.0,102070.0,8.4e-07]
[1738355844938,0.8090115,102080.0,102070.0,8.4e-07]
[1738355845540,0.83920137,102080.0,102070.0,8.4e-07]
[1738355845948,0.91711144,102080.0,102070.0,8.4e-07]
[1738355846406,1.02921144,102080.0,102070.0,8.4e-07]
[1738355846652,0.17,102060.0,102050.0,4.4e-07]
[1738355846890,1.62310157,102060.0,102050.0,3.1e-07]
[1738355847146,1.62610157,102060.0,102050.0,3.1e-07]
[1738355847393,1.40429144,102060.0,102050.0,3.1e-07]
[1738355848171,0.319986,102050.0,102040.0,3.1e-07]
[1738355848550,0.319986,102050.0,101990.0,0.0001822]
[1738355848551,0.147058,102000.0,101990.0,0.0001822]
[1738355848633,0.297058,102000.0,101990.0,0.0001822]
[1738355848858,1.46276944,102000.0,101990.0,0.00032609]
[1738355849095,1.43257957,102000.0,101990.0,0.00032609]
[1738355849723,1.46276944,102000.0,101990.0,0.00032609]
[1738355849901,1.5701262,102000.0,101990.0,0.00032609]
[1738355850112,1.5731262,102000.0,101990.0,0.00032609]
[1738355850327,1.5821262,102000.0,101990.0,0.00032609]
[1738355850539,1.5701262,102000.0,101990.0,0.00032609]
[1738355850750,1.5791262,102000.0,101990.0,0.00032609]
[1738355850954,1.56061633,102000.0,101990.0,0.00032609]
[1738355851158,1.40714294,102000.0,101990.0,0.00032609]
[1738355851363,1.38414294,102000.0,101990.0,0.00032609]
[1738355851590,1.23414294,102000.0,101990.0,0.07732609]
[1738355851779,1.12953978,102000.0,101990.0,0.07732609]
[1738355852009,0.98248178,102000.0,101990.0,0.27009909]
[1738355852414,0.98248178,102000.0,101990.0,0.12302609]
[1738355852624,0.97348178,102000.0,101990.0,0.27009909]
[1738355852800,0.98248178,102000.0,101990.0,0.27009909]
[1738355853035,0.97348178,102000.0,101990.0,0.12302609]
[1738355853241,1.12053978,102000.0,101990.0,0.12302609]
[1738355853442,0.97648178,102000.0,101990.0,0.12302609]
[1738355853646,0.97648178,102000.0,101990.0,0.27009909]
[1738355853823,1.12353978,102000.0,101990.0,0.12302609]
[1738355856843,0.97648178,102000.0,101990.0,0.27009909]
[1738355857050,0.97648178,102000.0,101990.0,0.36734225]
[1738355857266,0.343075,102020.0,102010.0,0.225844]
[1738355857267,0.96448178,102020.0,102010.0,0.225844]
[1738355857482,0.96448178,102020.0,102010.0,0.1276]
[1738355857684,1.11151078,102020.0,102010.0,0.1276]
[1738355857896,0.96448178,102020.0,102010.0,0.274644]
[1738355858096,1.30750578,102040.0,102020.0,0.343062]
[1738355858304,0.96448178,102040.0,102030.0,0.1228]
[1738355858925,1.11148278,102040.0,102030.0,0.1228]
[1738355859759,1.11448278,102040.0,102030.0,0.1228]
[1738355859968,1.12348278,102040.0,102030.0,0.1238]
[1738355861031,0.97648178,102040.0,102030.0,0.1238]
[1738355861240,1.12348278,102040.0,102030.0,0.1238]
[1738355862027,0.97648178,102040.0,102030.0,0.270815]
[1738355862241,0.012,102040.0,102030.0,0.36805816]
[1738355863104,0.009,102040.0,102030.0,0.36805816]
[1738355863283,0.009,102040.0,102030.0,0.36705816]
[1738355863484,1.50343478,102050.0,102030.0,0.36905816]
[1738355863695,1.11146978,102050.0,102030.0,0.56907816]
[1738355863926,1.30745178,102050.0,102030.0,0.37305816]
[1738355864113,1.30745178,102050.0,102030.0,0.56907716]
[1738355864312,1.30745178,102050.0,102030.0,0.1288]
[1738355864313,0.147001,102040.0,102030.0,0.1288]
[1738355864538,0.147001,102040.0,102030.0,0.1248]
[1738355864713,0.147001,102040.0,102030.0,0.1288]
[1738355864850,0.147001,102040.0,102030.0,0.2268]
[1738355865054,0.147001,102040.0,102030.0,0.2288]
[1738355865744,0.147001,102040.0,102030.0,0.2268]
[1738355866026,0.147001,102040.0,102030.0,0.2238]
[1738355866231,0.147001,102040.0,102030.0,0.2248]